[Event "Early-Titled-Tuesday-Blitz-March-05-2024"]
[Site "Chess.com"]
[Date "2024.03.05"]
[Round "8"]
[White "Aleksandar-Topalov"]
[Black "ccccvhhhj"]
[Result "1-0"]
[WhiteElo "2358"]
[BlackElo "2467"]
[TimeControl "180+1"]
[EndTime "9:29:42 PST"]
[Termination "Aleksandar-Topalov won on time"]

1. b3 {[%clk 0:03:00.9]} 1... d5 {[%clk 0:02:58.1]} 2. Bb2 {[%clk 0:03:00.9]}
2... Nf6 {[%clk 0:02:58.1]} 3. Nf3 {[%clk 0:03:00.9]} 3... Bf5 {[%clk
0:02:57.4]} 4. g3 {[%clk 0:03:00.5]} 4... Qc8 {[%clk 0:02:51.1]} 5. h3 {[%clk
0:02:56.3]} 5... h6 {[%clk 0:02:47]} 6. Bg2 {[%clk 0:02:56]} 6... c6 {[%clk
0:02:43.6]} 7. d3 {[%clk 0:02:56]} 7... e6 {[%clk 0:02:41.1]} 8. Nbd2 {[%clk
0:02:55.3]} 8... Be7 {[%clk 0:02:38.7]} 9. e4 {[%clk 0:02:50.2]} 9... dxe4
{[%clk 0:02:32]} 10. dxe4 {[%clk 0:02:50.2]} 10... Bh7 {[%clk 0:02:17.5]} 11.
Qe2 {[%clk 0:02:48.6]} 11... a5 {[%clk 0:02:11.2]} 12. a3 {[%clk 0:02:47.5]}
12... Na6 {[%clk 0:02:04]} 13. O-O {[%clk 0:02:40.5]} 13... O-O {[%clk
0:02:03.8]} 14. Ne5 {[%clk 0:02:20.8]} 14... Nc5 {[%clk 0:01:49.2]} 15. f3
{[%clk 0:02:18.3]} 15... Ncd7 {[%clk 0:01:44.1]} 16. Nxd7 {[%clk 0:02:15.9]}
16... Nxd7 {[%clk 0:01:36.9]} 17. Kh2 {[%clk 0:02:12.2]} 17... e5 {[%clk
0:01:19]} 18. h4 {[%clk 0:02:08.5]} 18... f6 {[%clk 0:01:09.7]} 19. Bh3 {[%clk
0:02:08]} 19... Qc7 {[%clk 0:01:09.5]} 20. Nc4 {[%clk 0:02:05.3]} 20... Nb6
{[%clk 0:01:01.9]} 21. Ne3 {[%clk 0:02:03.2]} 21... Bc5 {[%clk 0:00:59]} 22.
Rfd1 {[%clk 0:01:59.7]} 22... Bxe3 {[%clk 0:00:50.5]} 23. Qxe3 {[%clk
0:01:59.2]} 23... Rfd8 {[%clk 0:00:51.2]} 24. a4 {[%clk 0:01:52.2]} 24... Kh8
{[%clk 0:00:49.5]} 25. Ba3 {[%clk 0:01:51.6]} 25... Bg8 {[%clk 0:00:31.9]} 26.
Bc5 {[%clk 0:01:50.8]} 26... Nd7 {[%clk 0:00:31.5]} 27. Be7 {[%clk 0:01:50.6]}
27... Nf8 {[%clk 0:00:23]} 28. Bxd8 {[%clk 0:01:47.3]} 28... Rxd8 {[%clk
0:00:23.9]} 29. Qe2 {[%clk 0:01:38.8]} 29... Be6 {[%clk 0:00:17]} 30. Rxd8
{[%clk 0:01:33.8]} 30... Qxd8 {[%clk 0:00:17.9]} 31. Rd1 {[%clk 0:01:31.5]}
31... Qc8 {[%clk 0:00:17.4]} 32. Bxe6 {[%clk 0:01:30.5]} 32... Nxe6 {[%clk
0:00:18.3]} 33. Qc4 {[%clk 0:01:25.5]} 33... Nd4 {[%clk 0:00:14.4]} 34. Kg2
{[%clk 0:01:21.8]} 34... Kh7 {[%clk 0:00:04]} 35. c3 {[%clk 0:01:21.7]} 35...
Ne6 {[%clk 0:00:04.3]} 36. Rd6 {[%clk 0:01:14.1]} 36... Nc7 {[%clk 0:00:04.2]}
37. Qf7 {[%clk 0:01:03.5]} 37... b5 {[%clk 0:00:02.1]} 38. Rxc6 {[%clk 0:01:00]}
38... Qd8 {[%clk 0:00:01.5]} 39. Rxc7 {[%clk 0:00:56.7]} 39... Qd2+ {[%clk
0:00:02.1]} 40. Kh3 {[%clk 0:00:56.4]} 1-0

[Event "Early-Titled-Tuesday-Blitz-March-05-2024"]
[Site "Chess.com"]
[Date "2024.03.05"]
[Round "8"]
[White "Rodalquilar"]
[Black "Antipov_Mikhail_Al"]
[Result "0-1"]
[WhiteElo "2807"]
[BlackElo "2945"]
[TimeControl "180+1"]
[EndTime "9:29:48 PST"]
[Termination "Antipov_Mikhail_Al won by checkmate"]

1. d4 {[%clk 0:03:00.9]} 1... Nf6 {[%clk 0:03:00]} 2. Nf3 {[%clk 0:03:01.4]}
2... d5 {[%clk 0:02:59.9]} 3. Bf4 {[%clk 0:03:01.6]} 3... Nh5 {[%clk 0:02:59.7]}
4. Bc1 {[%clk 0:03:00.8]} 4... e6 {[%clk 0:02:59]} 5. Ne5 {[%clk 0:02:26.2]}
5... Nd7 {[%clk 0:02:41.9]} 6. e4 {[%clk 0:02:22]} 6... Nhf6 {[%clk 0:02:34]} 7.
Nxd7 {[%clk 0:02:21.6]} 7... Bxd7 {[%clk 0:02:33.5]} 8. e5 {[%clk 0:02:22.1]}
8... Ne4 {[%clk 0:02:32.8]} 9. Nd2 {[%clk 0:02:15]} 9... c5 {[%clk 0:01:54.9]}
10. Nxe4 {[%clk 0:02:09.6]} 10... dxe4 {[%clk 0:01:55.8]} 11. Be3 {[%clk
0:01:38.4]} 11... Qb6 {[%clk 0:01:53.6]} 12. Be2 {[%clk 0:01:38.9]} 12... Qxb2
{[%clk 0:01:47.5]} 13. O-O {[%clk 0:01:39]} 13... cxd4 {[%clk 0:01:40.6]} 14.
Bxd4 {[%clk 0:01:39.1]} 14... Qa3 {[%clk 0:01:40.6]} 15. Rb1 {[%clk 0:01:38.8]}
15... Bc6 {[%clk 0:01:34.7]} 16. Rxb7 {[%clk 0:01:38.5]} 16... Qa5 {[%clk
0:00:46.5]} 17. Qb1 {[%clk 0:01:16.1]} 17... Be7 {[%clk 0:00:25.9]} 18. Rb8+
{[%clk 0:00:27.1]} 18... Kd7 {[%clk 0:00:20.8]} 19. Rxh8 {[%clk 0:00:22.4]}
19... Rxh8 {[%clk 0:00:21.7]} 20. Rd1 {[%clk 0:00:22.7]} 20... Kc7 {[%clk
0:00:21.7]} 21. Qc1 {[%clk 0:00:13.1]} 21... Rd8 {[%clk 0:00:16]} 22. c3 {[%clk
0:00:12.9]} 22... Qxa2 {[%clk 0:00:09.7]} 23. Kf1 {[%clk 0:00:13.4]} 23... Qa4
{[%clk 0:00:05.3]} 24. Qf4 {[%clk 0:00:11.2]} 24... Bb5 {[%clk 0:00:05.1]} 25.
Qe3 {[%clk 0:00:07.3]} 25... Qxd1# {[%clk 0:00:04.3]} 0-1

[Event "Early-Titled-Tuesday-Blitz-March-05-2024"]
[Site "Chess.com"]
[Date "2024.03.05"]
[Round "8"]
[White "Road2GM3000"]
[Black "Ducke13"]
[Result "0-1"]
[WhiteElo "2492"]
[BlackElo "2376"]
[TimeControl "180+1"]
[EndTime "9:29:48 PST"]
[Termination "Ducke13 won by resignation"]

1. d4 {[%clk 0:02:44.4]} 1... Nf6 {[%clk 0:02:53.6]} 2. c4 {[%clk 0:02:45]} 2...
g6 {[%clk 0:02:54]} 3. Nc3 {[%clk 0:02:45.6]} 3... d5 {[%clk 0:02:53.6]} 4. Bg5
{[%clk 0:02:44.7]} 4... Ne4 {[%clk 0:02:52.8]} 5. Bh4 {[%clk 0:02:45.2]} 5...
Nxc3 {[%clk 0:02:46.1]} 6. bxc3 {[%clk 0:02:46.1]} 6... c5 {[%clk 0:02:38.7]} 7.
e3 {[%clk 0:02:46.4]} 7... Bg7 {[%clk 0:02:19.4]} 8. Nf3 {[%clk 0:02:46.3]} 8...
O-O {[%clk 0:02:16.7]} 9. cxd5 {[%clk 0:02:46.7]} 9... Qxd5 {[%clk 0:02:15.2]}
10. Bxe7 {[%clk 0:02:46.8]} 10... Re8 {[%clk 0:02:07.6]} 11. Bxc5 {[%clk
0:02:47.2]} 11... b6 {[%clk 0:02:06]} 12. Ba3 {[%clk 0:02:46.9]} 12... Nc6
{[%clk 0:01:55.8]} 13. Be2 {[%clk 0:02:44.2]} 13... Qa5 {[%clk 0:01:52.2]} 14.
Bb2 {[%clk 0:02:41.2]} 14... b5 {[%clk 0:01:44.5]} 15. O-O {[%clk 0:02:39.8]}
15... Be6 {[%clk 0:01:36.1]} 16. d5 {[%clk 0:02:22.7]} 16... Rad8 {[%clk
0:01:33.8]} 17. e4 {[%clk 0:02:23.3]} 17... Bg4 {[%clk 0:01:19.8]} 18. Qc2
{[%clk 0:02:14.9]} 18... Bxf3 {[%clk 0:01:10.1]} 19. Bxf3 {[%clk 0:02:14.9]}
19... Ne5 {[%clk 0:01:10.8]} 20. Be2 {[%clk 0:02:13.9]} 20... Nc4 {[%clk
0:01:08]} 21. Bxc4 {[%clk 0:02:12.5]} 21... bxc4 {[%clk 0:01:08.9]} 22. Rfc1
{[%clk 0:01:47.9]} 22... Rb8 {[%clk 0:01:08.7]} 23. a4 {[%clk 0:01:47.9]} 23...
Rb3 {[%clk 0:01:03.3]} 24. Ra3 {[%clk 0:01:47.4]} 24... Reb8 {[%clk 0:01:03]}
25. Rxb3 {[%clk 0:01:47.6]} 25... cxb3 {[%clk 0:01:03.3]} 26. Qd3 {[%clk
0:01:37.2]} 26... Qxa4 {[%clk 0:01:03.6]} 27. Ra1 {[%clk 0:01:37]} 27... Qd7
{[%clk 0:00:56.8]} 28. f4 {[%clk 0:01:34.5]} 28... Qc7 {[%clk 0:00:44.6]} 29. e5
{[%clk 0:01:32.5]} 29... Bh6 {[%clk 0:00:41.4]} 30. g3 {[%clk 0:01:30.3]} 30...
Bf8 {[%clk 0:00:37.4]} 31. d6 {[%clk 0:01:30]} 31... Qb6+ {[%clk 0:00:34.5]} 32.
Kf1 {[%clk 0:01:24.6]} 32... a5 {[%clk 0:00:25.8]} 33. Ra4 {[%clk 0:01:19]}
33... Qc6 {[%clk 0:00:23]} 34. Qe4 {[%clk 0:01:19.2]} 34... Qb5+ {[%clk
0:00:09]} 35. Qc4 {[%clk 0:01:16.9]} 35... Qb7 {[%clk 0:00:09.3]} 36. Qe4 {[%clk
0:01:03.4]} 36... Qb5+ {[%clk 0:00:09.2]} 37. Kg2 {[%clk 0:01:02.1]} 37... Rc8
{[%clk 0:00:05.8]} 38. Qd4 {[%clk 0:01:02.4]} 38... Qe2+ {[%clk 0:00:05.3]} 39.
Kg1 {[%clk 0:00:59.6]} 39... Qxb2 {[%clk 0:00:05.4]} 40. d7 {[%clk 0:00:54.4]}
40... Qc1+ {[%clk 0:00:05.8]} 41. Kg2 {[%clk 0:00:54.5]} 41... Qc2+ {[%clk
0:00:05.8]} 42. Kh3 {[%clk 0:00:54.4]} 42... Rd8 {[%clk 0:00:05.7]} 43. e6
{[%clk 0:00:55]} 43... Qf5+ {[%clk 0:00:05.2]} 44. Kg2 {[%clk 0:00:55]} 44...
Qxe6 {[%clk 0:00:05.8]} 45. Rxa5 {[%clk 0:00:54.6]} 45... Rxd7 {[%clk
0:00:05.9]} 46. Qb4 {[%clk 0:00:55.2]} 46... Bxb4 {[%clk 0:00:05.7]} 0-1

[Event "Early-Titled-Tuesday-Blitz-March-05-2024"]
[Site "Chess.com"]
[Date "2024.03.05"]
[Round "8"]
[White "janhelmer03"]
[Black "MikeSailer"]
[Result "1-0"]
[WhiteElo "2390"]
[BlackElo "2183"]
[TimeControl "180+1"]
[EndTime "9:29:51 PST"]
[Termination "janhelmer03 won on time"]

1. Nf3 {[%clk 0:02:59.5]} 1... Nf6 {[%clk 0:02:55.7]} 2. c4 {[%clk 0:02:56.6]}
2... e6 {[%clk 0:02:55]} 3. Nc3 {[%clk 0:02:53.8]} 3... d5 {[%clk 0:02:54.4]} 4.
e3 {[%clk 0:02:54.1]} 4... c5 {[%clk 0:02:53.9]} 5. cxd5 {[%clk 0:02:53.4]} 5...
exd5 {[%clk 0:02:53.4]} 6. d4 {[%clk 0:02:53.6]} 6... Nc6 {[%clk 0:02:49.4]} 7.
Be2 {[%clk 0:02:52.3]} 7... cxd4 {[%clk 0:02:23.9]} 8. Nxd4 {[%clk 0:02:52.4]}
8... Bd6 {[%clk 0:02:22.5]} 9. O-O {[%clk 0:02:47.3]} 9... O-O {[%clk
0:02:21.5]} 10. b3 {[%clk 0:02:34.5]} 10... a6 {[%clk 0:02:15.4]} 11. Bb2 {[%clk
0:02:34.5]} 11... Re8 {[%clk 0:02:14.7]} 12. Nxc6 {[%clk 0:02:34.6]} 12... bxc6
{[%clk 0:02:14]} 13. Rc1 {[%clk 0:02:35.5]} 13... Bb7 {[%clk 0:02:06.5]} 14. Na4
{[%clk 0:02:34.9]} 14... Qe7 {[%clk 0:02:04.5]} 15. Bd4 {[%clk 0:02:14.8]} 15...
Ne4 {[%clk 0:01:56.6]} 16. Bf3 {[%clk 0:02:10.9]} 16... c5 {[%clk 0:01:11.2]}
17. Bb2 {[%clk 0:01:55.8]} 17... Qh4 {[%clk 0:00:43.3]} 18. g3 {[%clk
0:01:36.9]} 18... Nxg3 {[%clk 0:00:41.7]} 19. hxg3 {[%clk 0:01:27.5]} 19... Bxg3
{[%clk 0:00:41.3]} 20. fxg3 {[%clk 0:01:23]} 20... Qxg3+ {[%clk 0:00:41.5]} 21.
Bg2 {[%clk 0:01:16.7]} 21... d4 {[%clk 0:00:33.4]} 22. Rf3 {[%clk 0:00:37.3]}
22... Bxf3 {[%clk 0:00:24.7]} 23. Qxf3 {[%clk 0:00:38.2]} 23... Qg5 {[%clk
0:00:13.1]} 24. Rxc5 {[%clk 0:00:34.8]} 24... Qg6 {[%clk 0:00:05.6]} 25. Bxd4
{[%clk 0:00:32.4]} 25... Qb1+ {[%clk 0:00:02.4]} 26. Kh2 {[%clk 0:00:31.7]}
26... Qxa2 {[%clk 0:00:02.6]} 27. Rg5 {[%clk 0:00:24.9]} 27... g6 {[%clk
0:00:02.1]} 28. Qf6 {[%clk 0:00:24.9]} 1-0

[Event "Early-Titled-Tuesday-Blitz-March-05-2024"]
[Site "Chess.com"]
[Date "2024.03.05"]
[Round "8"]
[White "Evgeny81"]
[Black "lilleper1"]
[Result "0-1"]
[WhiteElo "2783"]
[BlackElo "2928"]
[TimeControl "180+1"]
[EndTime "9:29:53 PST"]
[Termination "lilleper1 won by resignation"]

1. d4 {[%clk 0:02:57.8]} 1... Nf6 {[%clk 0:02:59.9]} 2. Nf3 {[%clk 0:02:58]}
2... d5 {[%clk 0:02:59.7]} 3. Bg5 {[%clk 0:02:58.3]} 3... Ne4 {[%clk 0:02:58.9]}
4. Bf4 {[%clk 0:02:58.6]} 4... g6 {[%clk 0:02:54.5]} 5. e3 {[%clk 0:02:57.4]}
5... Bg7 {[%clk 0:02:54.2]} 6. Nbd2 {[%clk 0:02:57.7]} 6... c5 {[%clk
0:02:52.9]} 7. c3 {[%clk 0:02:56.2]} 7... Nxd2 {[%clk 0:02:49.4]} 8. Qxd2 {[%clk
0:02:54.8]} 8... Nd7 {[%clk 0:02:42.7]} 9. Bb5 {[%clk 0:02:47.2]} 9... O-O
{[%clk 0:02:36.3]} 10. O-O {[%clk 0:02:46.7]} 10... Qb6 {[%clk 0:02:32.4]} 11.
Ba4 {[%clk 0:02:43.1]} 11... Nf6 {[%clk 0:02:29.8]} 12. Be5 {[%clk 0:02:38.6]}
12... Ne4 {[%clk 0:02:26.7]} 13. Qe2 {[%clk 0:02:38.9]} 13... Bg4 {[%clk
0:02:23.3]} 14. Bxg7 {[%clk 0:02:38.8]} 14... Kxg7 {[%clk 0:02:24.2]} 15. Rfd1
{[%clk 0:02:30.4]} 15... Rfd8 {[%clk 0:02:14.3]} 16. Rab1 {[%clk 0:02:18.2]}
16... Ng5 {[%clk 0:02:11.6]} 17. dxc5 {[%clk 0:02:08.4]} 17... Qf6 {[%clk
0:02:08.5]} 18. Qf1 {[%clk 0:00:45.3]} 18... Nxf3+ {[%clk 0:01:29]} 19. gxf3
{[%clk 0:00:46.2]} 19... Bxf3 {[%clk 0:01:29.3]} 20. Qh3 {[%clk 0:00:45]} 20...
Bxd1 {[%clk 0:01:22.3]} 21. Rxd1 {[%clk 0:00:45.9]} 21... Rac8 {[%clk
0:01:20.3]} 22. Bb3 {[%clk 0:00:39]} 22... Rxc5 {[%clk 0:01:18.8]} 23. Qg3
{[%clk 0:00:36.9]} 23... b5 {[%clk 0:01:16.7]} 24. h4 {[%clk 0:00:35.5]} 24...
h5 {[%clk 0:01:16]} 25. Rd4 {[%clk 0:00:32.1]} 25... e5 {[%clk 0:01:12.3]} 26.
Rd1 {[%clk 0:00:27.9]} 26... d4 {[%clk 0:01:11.2]} 27. cxd4 {[%clk 0:00:27.1]}
27... exd4 {[%clk 0:01:11.3]} 28. e4 {[%clk 0:00:26.2]} 28... a5 {[%clk
0:00:51.9]} 29. Rd3 {[%clk 0:00:25.2]} 29... Qe5 {[%clk 0:00:46.2]} 30. Qf3
{[%clk 0:00:17.7]} 30... Rc7 {[%clk 0:00:45.8]} 31. Kg2 {[%clk 0:00:15.9]} 31...
Rd6 {[%clk 0:00:45.3]} 32. Bd5 {[%clk 0:00:15.3]} 32... Rf6 {[%clk 0:00:44.6]}
33. Qh3 {[%clk 0:00:14.9]} 33... Rc2 {[%clk 0:00:43]} 34. Rf3 {[%clk 0:00:14.9]}
34... d3 {[%clk 0:00:42.9]} 35. Rxf6 {[%clk 0:00:08.5]} 35... Qxf6 {[%clk
0:00:42.7]} 36. Qe3 {[%clk 0:00:08.8]} 36... Re2 {[%clk 0:00:37.3]} 37. Qa7
{[%clk 0:00:07.5]} 37... d2 {[%clk 0:00:36.8]} 38. Bb3 {[%clk 0:00:07.2]} 38...
Rxe4 {[%clk 0:00:35.1]} 0-1

[Event "Early-Titled-Tuesday-Blitz-March-05-2024"]
[Site "Chess.com"]
[Date "2024.03.05"]
[Round "8"]
[White "Actuary44"]
[Black "giomar27"]
[Result "1-0"]
[WhiteElo "2548"]
[BlackElo "2410"]
[TimeControl "180+1"]
[EndTime "9:29:53 PST"]
[Termination "Actuary44 won by resignation"]

1. e4 {[%clk 0:03:00.9]} 1... Nc6 {[%clk 0:02:59.6]} 2. d4 {[%clk 0:03:00.9]}
2... e5 {[%clk 0:02:58.3]} 3. d5 {[%clk 0:03:01.5]} 3... Nce7 {[%clk 0:02:58.5]}
4. f4 {[%clk 0:03:01.6]} 4... Ng6 {[%clk 0:02:59]} 5. Nf3 {[%clk 0:02:59.3]}
5... exf4 {[%clk 0:02:57.8]} 6. c4 {[%clk 0:02:57]} 6... Bc5 {[%clk 0:02:56.7]}
7. Nc3 {[%clk 0:02:57]} 7... d6 {[%clk 0:02:44.9]} 8. Qc2 {[%clk 0:02:55.4]}
8... Bg4 {[%clk 0:02:43.9]} 9. Bd2 {[%clk 0:02:40.8]} 9... Bxf3 {[%clk 0:02:41]}
10. gxf3 {[%clk 0:02:39.3]} 10... Qh4+ {[%clk 0:02:41.2]} 11. Kd1 {[%clk
0:02:39.8]} 11... N8e7 {[%clk 0:02:19.6]} 12. Qa4+ {[%clk 0:02:38.9]} 12... c6
{[%clk 0:02:15.8]} 13. Kc2 {[%clk 0:02:34.5]} 13... O-O {[%clk 0:02:14.7]} 14.
Ne2 {[%clk 0:02:05]} 14... f5 {[%clk 0:02:11.3]} 15. b4 {[%clk 0:01:45.3]} 15...
Bb6 {[%clk 0:02:10.4]} 16. c5 {[%clk 0:01:45.1]} 16... Bc7 {[%clk 0:02:04.7]}
17. dxc6 {[%clk 0:01:29.8]} 17... bxc6 {[%clk 0:01:57.6]} 18. cxd6 {[%clk
0:01:25.3]} 18... Bxd6 {[%clk 0:01:57.3]} 19. Rd1 {[%clk 0:01:25.2]} 19... fxe4
{[%clk 0:01:55.7]} 20. fxe4 {[%clk 0:01:22.2]} 20... Kh8 {[%clk 0:01:53.1]} 21.
Nd4 {[%clk 0:01:20.9]} 21... Be5 {[%clk 0:01:48.8]} 22. Nf3 {[%clk 0:01:18.6]}
22... Qf6 {[%clk 0:01:46.8]} 23. Bc4 {[%clk 0:01:11.1]} 23... Rac8 {[%clk
0:01:32.8]} 24. h4 {[%clk 0:01:10.4]} 24... h5 {[%clk 0:01:24.3]} 25. Rhg1
{[%clk 0:01:02.4]} 25... c5 {[%clk 0:01:20.7]} 26. Rg5 {[%clk 0:01:01.7]} 26...
Ng8 {[%clk 0:01:08.6]} 27. Kb1 {[%clk 0:00:33.4]} 27... cxb4 {[%clk 0:01:05.5]}
28. Bxg8 {[%clk 0:00:23.6]} 28... Kxg8 {[%clk 0:00:58]} 29. Qb3+ {[%clk
0:00:23.1]} 29... Rf7 {[%clk 0:00:53.5]} 30. Rdg1 {[%clk 0:00:22]} 30... Nxh4
{[%clk 0:00:25.4]} 31. Nxe5 {[%clk 0:00:20.2]} 31... f3 {[%clk 0:00:20.6]} 32.
Nxf7 {[%clk 0:00:19.7]} 32... f2 {[%clk 0:00:18.8]} 33. Ne5+ {[%clk 0:00:18.2]}
33... Kh8 {[%clk 0:00:18.8]} 34. Rxh5+ {[%clk 0:00:18.4]} 34... Qh6 {[%clk
0:00:17.7]} 35. Rxh6+ {[%clk 0:00:15.8]} 35... gxh6 {[%clk 0:00:18.6]} 36. Rf1
{[%clk 0:00:13.9]} 1-0

[Event "Early-Titled-Tuesday-Blitz-March-05-2024"]
[Site "Chess.com"]
[Date "2024.03.05"]
[Round "8"]
[White "HelvertHernandez"]
[Black "AndresDelgado77"]
[Result "1-0"]
[WhiteElo "2033"]
[BlackElo "2287"]
[TimeControl "180+1"]
[EndTime "9:29:53 PST"]
[Termination "HelvertHernandez won on time"]

1. e4 {[%clk 0:02:55.8]} 1... e6 {[%clk 0:02:57.5]} 2. d4 {[%clk 0:02:55]} 2...
d5 {[%clk 0:02:57.5]} 3. exd5 {[%clk 0:02:53.9]} 3... exd5 {[%clk 0:02:56.8]} 4.
Nf3 {[%clk 0:02:53.8]} 4... Nc6 {[%clk 0:02:57]} 5. Bd3 {[%clk 0:02:53.1]} 5...
Bg4 {[%clk 0:02:56.3]} 6. c3 {[%clk 0:02:52.4]} 6... Bd6 {[%clk 0:02:56.7]} 7.
O-O {[%clk 0:02:52.2]} 7... Qd7 {[%clk 0:02:56.1]} 8. Re1+ {[%clk 0:02:51.8]}
8... Nge7 {[%clk 0:02:55.5]} 9. Nbd2 {[%clk 0:02:47.8]} 9... O-O-O {[%clk
0:02:52.7]} 10. b4 {[%clk 0:02:47.2]} 10... Ng6 {[%clk 0:02:49.3]} 11. a4 {[%clk
0:02:46.1]} 11... Rde8 {[%clk 0:02:44.4]} 12. a5 {[%clk 0:02:42.9]} 12... Rxe1+
{[%clk 0:02:37.8]} 13. Qxe1 {[%clk 0:02:39.6]} 13... Re8 {[%clk 0:02:37.9]} 14.
Qf1 {[%clk 0:02:36.6]} 14... Nce7 {[%clk 0:02:11.2]} 15. b5 {[%clk 0:02:34.8]}
15... b6 {[%clk 0:01:55.8]} 16. axb6 {[%clk 0:02:32.4]} 16... cxb6 {[%clk
0:01:56.1]} 17. c4 {[%clk 0:02:27.2]} 17... Nf4 {[%clk 0:01:50.9]} 18. c5 {[%clk
0:02:16.5]} 18... bxc5 {[%clk 0:01:46]} 19. dxc5 {[%clk 0:02:16.3]} 19... Bxc5
{[%clk 0:01:41.9]} 20. Nb3 {[%clk 0:02:13]} 20... Nxd3 {[%clk 0:01:07.4]} 21.
Qxd3 {[%clk 0:02:07.2]} 21... Bb6 {[%clk 0:00:46.5]} 22. Bf4 {[%clk 0:01:56.2]}
22... Ng6 {[%clk 0:00:32]} 23. Bg3 {[%clk 0:01:43.5]} 23... Kb7 {[%clk
0:00:20.9]} 24. Nfd4 {[%clk 0:01:22]} 24... h5 {[%clk 0:00:20.2]} 25. h4 {[%clk
0:01:19.8]} 25... Rc8 {[%clk 0:00:16.8]} 26. Kh2 {[%clk 0:01:17.5]} 26... Be6
{[%clk 0:00:15.5]} 27. Na5+ {[%clk 0:01:15.5]} 27... Ka8 {[%clk 0:00:14.3]} 28.
Nac6 {[%clk 0:01:14.6]} 28... Qb7 {[%clk 0:00:09.4]} 29. Qa3 {[%clk 0:01:06.9]}
29... Ne7 {[%clk 0:00:05.4]} 30. Bd6 {[%clk 0:01:01.2]} 30... Nxc6 {[%clk
0:00:04.7]} 31. bxc6 {[%clk 0:01:01.5]} 31... Rxc6 {[%clk 0:00:05.2]} 32. Nxc6
{[%clk 0:01:01.4]} 32... Qxc6 {[%clk 0:00:05.9]} 33. Bg3 {[%clk 0:01:00.2]}
33... d4 {[%clk 0:00:05.6]} 34. Qf8+ {[%clk 0:00:59.6]} 34... Qc8 {[%clk
0:00:04.8]} 35. Qd6 {[%clk 0:00:57.5]} 35... g6 {[%clk 0:00:04.1]} 36. Qxb6
{[%clk 0:00:57.3]} 36... Qb7 {[%clk 0:00:02.7]} 37. Qd8+ {[%clk 0:00:54.6]}
37... Bc8 {[%clk 0:00:01.4]} 38. Rc1 {[%clk 0:00:53.5]} 1-0

[Event "Early-Titled-Tuesday-Blitz-March-05-2024"]
[Site "Chess.com"]
[Date "2024.03.05"]
[Round "8"]
[White "karinachess1"]
[Black "eagleclaw07"]
[Result "1-0"]
[WhiteElo "2598"]
[BlackElo "2817"]
[TimeControl "180+1"]
[EndTime "9:29:54 PST"]
[Termination "karinachess1 won on time"]

1. d4 {[%clk 0:03:00.9]} 1... d5 {[%clk 0:02:59.7]} 2. c4 {[%clk 0:03:01.2]}
2... e6 {[%clk 0:03:00.3]} 3. Nc3 {[%clk 0:03:01.5]} 3... Nf6 {[%clk 0:03:00.8]}
4. cxd5 {[%clk 0:03:01.6]} 4... exd5 {[%clk 0:03:01.7]} 5. Bg5 {[%clk
0:03:01.5]} 5... Be7 {[%clk 0:03:02.6]} 6. e3 {[%clk 0:03:01.8]} 6... O-O {[%clk
0:03:03.2]} 7. Bd3 {[%clk 0:03:02.2]} 7... Nbd7 {[%clk 0:03:03.9]} 8. Nf3 {[%clk
0:02:57.4]} 8... Re8 {[%clk 0:03:04.4]} 9. O-O {[%clk 0:02:57.3]} 9... Nf8
{[%clk 0:03:04.7]} 10. Qc2 {[%clk 0:02:46.6]} 10... g6 {[%clk 0:03:04]} 11. a3
{[%clk 0:02:28.9]} 11... Ne6 {[%clk 0:03:03.1]} 12. Bh4 {[%clk 0:02:23.9]} 12...
Ng7 {[%clk 0:03:01.7]} 13. Ne5 {[%clk 0:02:17.6]} 13... Nf5 {[%clk 0:02:53.5]}
14. Bg5 {[%clk 0:02:11.2]} 14... c6 {[%clk 0:02:48.1]} 15. b4 {[%clk 0:02:09.4]}
15... Nd7 {[%clk 0:01:38.5]} 16. Bxe7 {[%clk 0:01:56.6]} 16... Nxe7 {[%clk
0:01:39.4]} 17. f4 {[%clk 0:01:44.9]} 17... Nxe5 {[%clk 0:01:37.5]} 18. fxe5
{[%clk 0:01:42.8]} 18... Bf5 {[%clk 0:01:33.5]} 19. Rad1 {[%clk 0:01:31.7]}
19... Qd7 {[%clk 0:01:30.1]} 20. Ne2 {[%clk 0:01:25.1]} 20... a5 {[%clk
0:01:26.3]} 21. Ng3 {[%clk 0:01:21.1]} 21... Bxd3 {[%clk 0:01:22.4]} 22. Qxd3
{[%clk 0:01:22]} 22... axb4 {[%clk 0:01:22.7]} 23. axb4 {[%clk 0:01:22.9]} 23...
Ra4 {[%clk 0:01:19.3]} 24. Rf6 {[%clk 0:01:14.6]} 24... Nc8 {[%clk 0:00:56.8]}
25. Rdf1 {[%clk 0:01:10.4]} 25... Re7 {[%clk 0:00:57]} 26. Qd2 {[%clk
0:00:57.3]} 26... Nb6 {[%clk 0:00:49.4]} 27. e4 {[%clk 0:00:48.4]} 27... Nc4
{[%clk 0:00:42.6]} 28. Qf2 {[%clk 0:00:45]} 28... Rxb4 {[%clk 0:00:36.5]} 29. e6
{[%clk 0:00:38.1]} 29... Qd8 {[%clk 0:00:08.6]} 30. Rxf7 {[%clk 0:00:27.7]}
30... Re8 {[%clk 0:00:06.3]} 31. e7 {[%clk 0:00:27.7]} 31... Rb2 {[%clk
0:00:02.3]} 32. exd8=Q {[%clk 0:00:24.2]} 1-0